{"text_format":"1","workbook":"xlsx","n_sheets":2,"sheets":["じゃんけん","作業"],"not_rendered":{"charts":0,"images":6,"macros":1,"external_links":0,"defined_names":0,"comments":0,"pivot_tables":0},"unopened":[],"bounds":{"document_bytes":16777216,"sheet_cells":100000,"rows_first":2000,"rows_last":500,"rows_between":2000,"halvings":0,"cell_chars":16384,"cell_head_chars":4096},"cells_cut":0,"cells_raw":0,"read":"whole","date_system":"1900"}

{"sheet":"じゃんけん","index":0,"n_rows":47,"n_cols":47,"rows_kept":47,"cut":false,"hidden":false,"merged":[[1,23,2,40],[0,9,0,15],[32,27,32,36],[33,23,33,40],[24,9,27,15],[26,27,27,29],[26,30,27,31],[26,32,27,44],[15,23,17,40],[18,23,20,40],[23,46,25,49],[22,46,22,49],[22,41,22,45],[23,41,25,45],[22,24,22,28],[22,33,22,37],[23,24,25,28],[23,30,25,31],[23,33,25,37]]}
[null,null,null,null,null,null,null,null,null,"わたしは↓です"]
[null,null,null,null,null,null,null,null,null,null,null,null,null,null,null,null,null,null,null,null,null,null,null,{"$f":"IF(作業!C1=\"\",\"\",作業!C1)","v":""}]
[]
[]
[]
[]
[]
[]
[]
[]
[]
[]
[]
[]
[]
[null,null,null,null,null,null,null,null,null,null,null,null,null,null,null,null,null,null,null,null,null,null,null,{"$f":"IF(作業!C2=\"\",\"\",作業!C2)","v":""}]
[]
[]
[null,null,null,null,null,null,null,null,null,null,null,null,null,null,null,null,null,null,null,null,null,null,null,{"$f":"IF(作業!C3=\"\",\"\",作業!C3)","v":""}]
[]
[]
[]
[null,null,null,null,null,null,null,null,null,null,null,null,null,null,null,null,null,null,null,null,null,null,null,null,"あなた",null,null,null,null,null,null,null,null,"わたし",null,null,null,null,null,null,null,"あいこ",null,null,null,null,"（相性率）"]
[null,null,null,null,null,null,null,null,null,null,null,null,null,null,null,null,null,null,null,null,null,null,null,null,{"$f":"IF(作業!C5=\"\",\"\",作業!C5)","v":0},null,null,null,null,null,"ＶＳ",null,null,{"$f":"IF(作業!C6=\"\",\"\",作業!C6)","v":0},null,null,null,null,null,null,null,{"$f":"IF(作業!C7=\"\",\"\",作業!C7)","v":0},null,null,null,null,{"$f":"IF(Y24+AH24+AP24=0,\"\",AP24/(Y24+AH24+AP24))","v":""}]
[null,null,null,null,null,null,null,null,null,{"$f":"IF(作業!C4=\"\",\"\",作業!C4)","v":""}]
[]
[null,null,null,null,null,null,null,null,null,null,null,null,null,null,null,null,null,null,null,null,null,null,null,null,null,null,null,{"$f":"IF(AE27>0,\"（あと\",\"\")","v":"（あと"},null,null,{"$f":"IF(作業!E7=\"\",\"\",作業!E7)","v":10},null,{"$f":"IF(AE27>0,\"回です。がんばって下さい。）\",\"\")","v":"回です。がんばって下さい。）"}]
[]
[null,null,null,null,null,null,null,null,null,null,null,null,null,null,null,null,null,null,null,null,null,null,null,null,null,null,null,null,null,"※あいこを除く10回勝負です。"]
[null,null,null,null,null,null,null,null,null,null,null,null,null,null,null,null,null,null,null,null,null,null,null,null,null,null,null,null,null,"※ENDキーで強制終了になります。"]
[]
[]
[null,null,null,null,null,null,null,null,null,null,null,null,null,null,null,null,null,null,null,null,null,null,null,null,null,null,null,"株式会社つくばＩＴパートナー"]
[null,null,null,null,null,null,null,null,null,null,null,null,null,null,null,null,null,null,null,null,null,null,null,"Copyright © 2017 Tsukuba IT Partner Co., Ltd. All Rights Reserved."]
[]
[]
[]
[]
[]
[]
[]
[]
[]
[]
[]
[]
[null,null,null,null,null,null,null,null,null,null,null,null,null,null,null,null,null,null,null,1,null,1]

{"sheet":"作業","index":1,"n_rows":10,"n_cols":19,"rows_kept":10,"cut":false,"hidden":true,"merged":[[0,2,0,6],[1,2,1,6],[2,2,2,6],[3,2,3,6]]}
[null,1]
[null,2]
[null,3]
[null,4]
[null,5,0]
[null,6,0,null,null,null,null,null,null,"←","↓","→"]
[null,7,0,null,10]
[]
[null,null,null,{"$f":"IF(C9=1,\"ぐー\",IF(C9=2,\"ちょき\",IF(C9=3,\"ぱー\",\"\")))","v":""},"画像",5,{"$f":"E9&F10","v":"画像07"},null,null,1,{"$f":"J9+1","v":2},{"$f":"K9+1","v":3},4,3,4,5,6,7,{"$f":"R9+1","v":8}]
[null,null,"前回",null,null,{"$f":"HLOOKUP(F9,J9:S10,2,FALSE)","v":"07"},null,null,null,"01","02","03","04","05","06","07","08","09","10"]